[Event "Catalan Youth Championship 2024"]
[Site "Cambrils"]
[Date "2024.03.23"]
[Round "1.5"]
[White "Tallada Serret, Gerard"]
[Black "Perolada Segui, Marc"]
[Result "1-0"]
[ECO "B22"]
[WhiteElo "2085"]
[BlackElo "1467"]
[Annotator "NA RC"]
[PlyCount "53"]
[EventDate "2024.03.13"]
[EventType "swiss"]
[EventCountry "ESP"]
[SourceTitle "playchess.com"]
[Source "ChessBase"]
[SourceQuality "1"]
[TimeControl "5400+30"]

1. e4 {[%emt 0:00:04]} c5 {[%emt 0:00:11]} 2. c3 {[%emt 0:00:11]} Nc6 {[%emt 0:00:07]} 3. d4 {[%emt 0:00:04]} cxd4 {[%emt 0:00:14]} 4. cxd4 {[%emt 0:00:04]} d6 {[%emt 0:00:21]} 5. Nc3 {[%emt 0:00:06]} Nf6 {[%emt 0:00:23]} 6. Nf3 {[%emt 0:02:02]} g6 {[%emt 0:02:12]} 7. d5 {[%emt 0:02:10]} Ne5 {[%emt 0:03:20]} 8. Nxe5 {[%emt 0:00:23]} dxe5 {[%emt 0:00:12]} 9. Be2 {[%emt 0:00:15]} e6 {[%emt 0:01:09]} 10. Bg5 {[%emt 0:01:03]} Bg7 {[%emt 0:01:01]} 11. Bb5+ {[%emt 0:06:43]} Bd7 {[%emt 0:00:57]} 12. dxe6 {[%emt 0:00:20]} Bxb5 {[%emt 0:02:55]} 13. exf7+ {[%emt 0:00:07]} Kxf7 {[%emt 0:00:43]} 14. Qb3+ {[%emt 0:00:14]} Kf8 {[%emt 0:01:22]} 15. Qxb5 {[%emt 0:00:26]} Qc7 {[%emt 0:03:35]} 16. O-O {[%emt 0:00:56]} a6 {[%emt 0:01:19]} 17. Qe2 {[%emt 0:05:14]} h6 {[%emt 0:01:38]} 18. Bxf6 {[%emt 0:00:37]} Bxf6 {[%emt 0:00:13]} 19. Rac1 {[%emt 0:00:04]} Qa5 {[%emt 0:02:56]} 20. b4 {[%emt 0:01:27]} Qa3 {[%emt 0:01:19]} 21. Nd5 {[%emt 0:00:54]} Bg5 {[%emt 0:00:59]} 22. Rc7 {[%emt 0:00:28]} Rb8 {[%emt 0:01:19]} 23. Qc4 {[%emt 0:01:27]} b5 {[%emt 0:00:36]} 24. Qc5+ {[%emt 0:00:07]} Kg8 {[%emt 1:13:29]} 25. Nf6+ {[%emt 0:00:45]} Bxf6 {[%emt 0:00:00]} 26. Qd5+ {[%emt 0:00:08]} Kf8 {[%emt 0:00:00]} 27. Qf7# {[%emt 0:00:17]} 1-0

[Event "Catalan Youth Championship 2024"]
[Site "Cambrils"]
[Date "2024.03.23"]
[Round "1.6"]
[White "Canteli Abad, Judit"]
[Black "Bru Montoya, Pau"]
[Result "0-1"]
[ECO "C54"]
[WhiteElo "1463"]
[BlackElo "1850"]
[Annotator "NA RC"]
[PlyCount "112"]
[EventDate "2024.03.13"]
[EventType "swiss"]
[EventCountry "ESP"]
[SourceTitle "playchess.com"]
[Source "ChessBase"]
[SourceQuality "1"]
[TimeControl "5400+30"]

1. e4 {[%emt 1:31:00]} e5 {[%emt 1:31:00]} 2. Nf3 {[%emt 0:00:30]} Nc6 {[%emt 0:00:30]} 3. Bc4 {[%emt 0:00:30]} Nf6 {[%emt 0:00:30]} 4. d3 {[%emt 0:00:30]} Bc5 {[%emt 0:00:30]} 5. c3 {[%emt 0:00:30]} a6 {[%emt 0:00:30]} 6. Bb3 {[%emt 0:00:30]} d6 {[%emt 0:00:30]} 7. Nbd2 {[%emt 0:00:30]} Bg4 {[%emt 0:00:30]} 8. h3 {[%emt 0:00:30]} Be6 {[%emt 0:00:30]} 9. Nf1 {[%emt 0:00:30]} h6 {[%emt 0:00:30]} 10. Ng3 {[%emt 0:00:30]} Qd7 {[%emt 0:00:30]} 11. Nh4 {[%emt 0:00:30]} d5 {[%emt 0:00:30]} 12. Qe2 {[%emt 0:00:30]} dxe4 {[%emt 0:00:30]} 13. dxe4 {[%emt 0:00:30]} O-O-O {[%emt 0:00:30]} 14. O-O {[%emt 0:00:30]} g5 {[%emt 0:00:30]} 15. Nhf5 {[%emt 0:00:30]} Bxf5 {[%emt 0:00:30]} 16. Nxf5 {[%emt 0:00:30]} Ne7 {[%emt 0:00:30]} 17. Ng3 {[%emt 0:00:30]} Ng6 {[%emt 0:00:30]} 18. Be3 {[%emt 0:00:30]} Bd6 {[%emt 0:00:30]} 19. Qf3 {[%emt 0:00:30]} Nf4 {[%emt 0:00:30]} 20. Nf5 {[%emt 0:00:30]} h5 {[%emt 0:00:30]} 21. h4 {[%emt 0:00:30]} g4 {[%emt 0:00:30]} 22. Qd1 {[%emt 0:00:30]} Nxe4 {[%emt 0:00:30]} 23. Ng3 {[%emt 0:00:30]} Nc5 {[%emt 0:00:30]} 24. Bc2 {[%emt 0:00:30]} Qc6 {[%emt 0:00:30]} 25. f3 {[%emt 0:00:30]} Be7 {[%emt 0:00:30]} 26. Qe1 {[%emt 0:00:30]} Bxh4 {[%emt 0:00:30]} 27. Bf5+ {[%emt 0:00:30]} Kb8 28. Bf2 {[%emt 0:00:30]} gxf3 {[%emt 0:01:00]} 29. Qxe5 {[%emt 0:00:30]} fxg2 {[%emt 0:00:30]} 30. Rfd1 {[%emt 0:00:30]} Ncd3 {[%emt 0:00:30]} 31. Bxd3 {[%emt 0:00:30]} Nxd3 {[%emt 0:00:30]} 32. Rxd3 {[%emt 0:00:30]} Rxd3 {[%emt 0:00:30]} 33. Qxh8+ {[%emt 0:00:30]} Rd8 {[%emt 0:00:30]} 34. Qxh5 {[%emt 0:00:30]} Bxg3 {[%emt 0:00:30]} 35. Bxg3 {[%emt 0:00:30]} Qb6+ {[%emt 0:00:30]} 36. Kh2 {[%emt 0:00:30]} Qxb2 {[%emt 0:00:30]} 37. Rg1 {[%emt 0:00:30]} Qxc3 {[%emt 0:00:30]} 38. Rxg2 {[%emt 0:00:30]} Rh8 {[%emt 0:00:30]} 39. Qxh8+ {[%emt 0:00:30]} Qxh8+ {[%emt 0:00:30]} 40. Kg1 {[%emt 0:00:30]} Kc8 {[%emt 0:00:30]} 41. Rc2 {[%emt 0:00:30]} c6 {[%emt 0:00:30]} 42. Rf2 {[%emt 0:00:30]} Qd4 {[%emt 0:00:30]} 43. Kg2 {[%emt 0:00:30]} Qd5+ {[%emt 0:00:30]} 44. Kh2 {[%emt 0:00:30]} Kd7 {[%emt 0:00:30]} 45. Bf4 {[%emt 0:00:30]} Ke6 {[%emt 0:00:30]} 46. Kg3 {[%emt 0:00:30]} Qd3+ {[%emt 0:00:30]} 47. Kg2 {[%emt 0:00:30]} Qg6+ {[%emt 0:00:30]} 48. Bg3 {[%emt 0:00:30]} Kd5 {[%emt 0:00:30]} 49. Rd2+ {[%emt 0:00:30]} Kc4 {[%emt 0:00:30]} 50. Rf2 {[%emt 0:00:30]} f5 {[%emt 0:00:30]} 51. Rf4+ {[%emt 0:00:30]} Kc3 {[%emt 0:00:30]} 52. Rf3+ {[%emt 0:00:30]} Kb2 {[%emt 0:00:30]} 53. Rf2+ {[%emt 0:00:30]} Ka3 {[%emt 0:00:30]} 54. Kf1 {[%emt 0:00:30]} c5 {[%emt 0:00:30]} 55. Bd6 {[%emt 0:00:30]} Qxd6 {[%emt 0:00:30]} 56. Rxf5 {[%emt 0:00:30]} Qd3+ {[%emt 0:00:30]} 0-1

[Event "Catalan Youth Championship 2024"]
[Site "Cambrils"]
[Date "2024.03.23"]
[Round "1.7"]
[White "Perez Vidal, Ian"]
[Black "Garcia Salabert, Josep"]
[Result "1-0"]
[ECO "C78"]
[WhiteElo "1828"]
[BlackElo "1462"]
[Annotator "NA RC"]
[PlyCount "111"]
[EventDate "2024.03.13"]
[EventType "swiss"]
[EventCountry "ESP"]
[SourceTitle "playchess.com"]
[Source "ChessBase"]
[SourceQuality "1"]
[TimeControl "5400+30"]

1. e4 {[%emt 0:00:02]} e5 {[%emt 0:00:18]} 2. Nf3 {[%emt 0:00:06]} Nc6 {[%emt 0:00:45]} 3. Bb5 {[%emt 0:00:06]} a6 {[%emt 0:01:04]} 4. Ba4 {[%emt 0:00:05]} Bc5 {[%emt 0:00:19]} 5. O-O {[%emt 0:00:10]} Nf6 {[%emt 0:00:13]} 6. Nxe5 {[%emt 1:33:01]} O-O {[%emt 0:10:15]} 7. Nxc6 {[%emt 0:00:00]} dxc6 {[%emt 0:00:39]} 8. d3 {[%emt 0:00:00]} Qd6 {[%emt 0:07:32]} 9. h3 {[%emt 0:00:00]} Rd8 {[%emt 0:07:22]} 10. Kh1 {[%emt 0:00:00]} Nxe4 {[%emt 0:02:38]} 11. Qf3 {[%emt 0:00:00]} Nf6 {[%emt 0:06:46]} 12. Bf4 {[%emt 0:00:00]} Qe7 {[%emt 0:06:32]} 13. Nc3 {[%emt 0:00:00]} Nd5 {[%emt 0:03:09]} 14. Rae1 {[%emt 0:00:00]} Qf6 {[%emt 0:07:17]} 15. Nxd5 {[%emt 0:00:00]} cxd5 {[%emt 0:03:04]} 16. Bxc7 {[%emt 0:00:00]} Qxf3 {[%emt 0:00:54]} 17. gxf3 {[%emt 0:00:00]} Bxh3 {[%emt 0:02:09]} 18. Bxd8 {[%emt 0:00:00]} Bxf1 {[%emt 0:00:38]} 19. Re8+ {[%emt 0:00:00]} Bf8 {[%emt 0:00:27]} 20. Bd7 {[%emt 0:00:00]} Be2 {[%emt 0:01:01]} 21. Kg2 {[%emt 0:00:00]} g6 {[%emt 0:04:01]} 22. Kg3 {[%emt 0:00:00]} Kg7 {[%emt 0:00:54]} 23. Bf6+ {[%emt 0:00:00]} Kxf6 {[%emt 0:00:47]} 24. Rxa8 {[%emt 0:00:00]} Bd6+ {[%emt 0:00:44]} 25. Kg2 {[%emt 0:00:00]} Kg5 {[%emt 0:01:48]} 26. Re8 {[%emt 0:00:00]} Bd1 {[%emt 0:00:22]} 27. Re1 {[%emt 0:00:00]} Bxc2 {[%emt 0:00:20]} 28. Re2 {[%emt 0:00:00]} Bxd3 {[%emt 0:00:36]} 29. Rd2 {[%emt 0:00:00]} Bf5 {[%emt 0:01:43]} 30. Bxf5 {[%emt 0:00:00]} gxf5 {[%emt 0:01:12]} 31. Rxd5 {[%emt 0:00:00]} Bf4 {[%emt 0:02:15]} 32. Rd7 {[%emt 0:00:00]} b6 {[%emt 0:01:20]} 33. Rxf7 {[%emt 0:00:00]} Kg6 {[%emt 0:00:28]} 34. Rb7 {[%emt 0:00:00]} h5 {[%emt 0:00:34]} 35. Rxb6+ {[%emt 0:00:00]} Kg5 {[%emt 0:01:30]} 36. Rxa6 {[%emt 0:00:00]} Be5 {[%emt 0:01:58]} 37. b4 {[%emt 0:00:00]} h4 {[%emt 0:00:19]} 38. b5 {[%emt 0:00:00]} Kf4 {[%emt 0:00:54]} 39. Ra4+ {[%emt 0:00:00]} Kg5 {[%emt 0:00:24]} 40. f4+ {[%emt 0:00:00]} Bxf4 {[%emt 0:01:04]} 41. Rxf4 {[%emt 0:00:00]} Kxf4 {[%emt 0:00:05]} 42. b6 {[%emt 0:00:00]} h3+ {[%emt 0:01:26]} 43. Kxh3 {[%emt 0:00:00]} Kf3 {[%emt 0:00:07]} 44. b7 {[%emt 0:00:00]} Kxf2 {[%emt 0:00:15]} 45. b8=Q {[%emt 0:00:00]} Ke2 {[%emt 0:01:20]} 46. Qe5+ {[%emt 0:00:00]} Kd2 {[%emt 0:00:31]} 47. Qxf5 {[%emt 0:00:00]} Kc3 {[%emt 0:00:23]} 48. Qb5 {[%emt 0:00:00]} Kd4 {[%emt 0:00:14]} 49. Kg4 {[%emt 0:00:00]} Kc3 {[%emt 0:00:21]} 50. Kf4 {[%emt 0:00:00]} Kd4 {[%emt 0:00:46]} 51. a3 {[%emt 0:00:00]} Kc3 {[%emt 0:00:53]} 52. Qb4+ {[%emt 0:00:00]} Kd3 {[%emt 0:00:19]} 53. Kf3 {[%emt 0:00:00]} Kc2 {[%emt 0:00:22]} 54. Ke3 {[%emt 0:00:00]} Kc1 {[%emt 0:00:22]} 55. Kd3 {[%emt 0:00:00]} Kd1 {[%emt 0:00:18]} 56. Qb1# {[%emt 0:00:00]} 1-0

[Event "Catalan Youth Championship 2024"]
[Site "Cambrils"]
[Date "2024.03.23"]
[Round "1.8"]
[White "Titova, Veronika"]
[Black "Hijarrubia Alvarez-Cuevas, Gonzalo"]
[Result "0-1"]
[ECO "B40"]
[WhiteElo "1462"]
[BlackElo "1827"]
[Annotator "NA RC"]
[PlyCount "82"]
[EventDate "2024.03.13"]
[EventType "swiss"]
[EventCountry "ESP"]
[SourceTitle "playchess.com"]
[Source "ChessBase"]
[SourceQuality "1"]
[TimeControl "5400+30"]

1. e4 {[%emt 0:00:02]} c5 {[%emt 0:00:05]} 2. Nf3 {[%emt 0:00:12]} e6 {[%emt 0:00:05]} 3. Nc3 {[%emt 0:00:41]} a6 {[%emt 0:00:11]} 4. d4 {[%emt 0:00:21]} cxd4 {[%emt 0:00:08]} 5. Qxd4 {[%emt 0:00:14]} Nc6 {[%emt 0:01:11]} 6. Qd1 {[%emt 0:00:16]} d6 {[%emt 0:01:02]} 7. Bc4 {[%emt 0:00:50]} b5 {[%emt 0:00:48]} 8. Bb3 {[%emt 0:00:13]} Bb7 {[%emt 0:00:23]} 9. O-O {[%emt 1:32:11]} Nf6 {[%emt 1:31:07]} 10. Re1 {[%emt 0:00:00]} Be7 {[%emt 0:00:00]} 11. e5 {[%emt 0:00:00]} dxe5 {[%emt 0:00:00]} 12. Qxd8+ {[%emt 0:00:00]} Rxd8 {[%emt 0:00:00]} 13. Nxe5 {[%emt 0:00:00]} Nxe5 {[%emt 0:00:00]} 14. Rxe5 {[%emt 0:00:00]} b4 {[%emt 0:00:00]} 15. Ba4+ {[%emt 0:00:00]} Kf8 {[%emt 0:00:00]} 16. h3 {[%emt 0:00:00]} bxc3 {[%emt 0:00:00]} 17. bxc3 {[%emt 0:00:00]} Rd1+ {[%emt 0:00:00]} 18. Kh2 {[%emt 0:00:00]} Bd6 {[%emt 0:00:00]} 19. f4 {[%emt 0:00:00]} Bxe5 {[%emt 0:00:00]} 20. fxe5 {[%emt 0:00:00]} Rd8 {[%emt 0:00:00]} 21. exf6 {[%emt 0:00:00]} gxf6 {[%emt 0:00:00]} 22. Ba3+ {[%emt 0:00:00]} Kg7 {[%emt 0:00:00]} 23. Rf1 {[%emt 0:00:00]} Rd2 {[%emt 0:00:00]} 24. Bb2 {[%emt 0:00:00]} Rxg2+ {[%emt 0:00:00]} 25. Kh1 {[%emt 0:00:00]} Rxc2+ {[%emt 0:00:00]} 26. Kg1 {[%emt 0:00:00]} Rg2+ {[%emt 0:00:00]} 27. Kh1 {[%emt 0:00:00]} Rxb2+ {[%emt 0:00:00]} 28. Kg1 {[%emt 0:00:00]} Rg2+ {[%emt 0:00:00]} 29. Kh1 {[%emt 0:00:00]} Rxa2+ {[%emt 0:00:00]} 30. Kg1 {[%emt 0:00:00]} Rxa4 {[%emt 0:00:00]} 31. Kh2 {[%emt 0:00:00]} f5 {[%emt 0:00:00]} 32. Rg1+ {[%emt 0:00:00]} Kf6 {[%emt 0:00:00]} 33. Kg3 {[%emt 0:00:00]} Rg8+ {[%emt 0:00:00]} 34. Kf2 {[%emt 0:00:00]} Ra2+ {[%emt 0:00:00]} 35. Kf1 {[%emt 0:00:00]} Ra1+ {[%emt 0:00:00]} 36. Ke2 {[%emt 0:00:00]} Rgxg1 {[%emt 0:00:00]} 37. Kd3 {[%emt 0:00:00]} Be4+ {[%emt 0:00:00]} 38. Kc4 {[%emt 0:00:00]} Rab1 {[%emt 0:00:00]} 39. Kd4 {[%emt 0:00:00]} e5+ {[%emt 0:00:00]} 40. Ke3 {[%emt 0:00:00]} Rb2 {[%emt 0:00:00]} 41. h4 {[%emt 0:00:00]} Rg3# {[%emt 0:00:00]} 0-1

[Event "Catalan Youth Championship 2024"]
[Site "Cambrils"]
[Date "2024.03.23"]
[Round "1.9"]
[White "Forca Soler, Marti"]
[Black "Villa Tornero, Alex"]
[Result "1/2-1/2"]
[ECO "A30"]
[WhiteElo "1615"]
[BlackElo "2329"]
[Annotator "RC"]
[PlyCount "97"]
[EventDate "2024.03.13"]
[EventType "swiss"]
[EventCountry "ESP"]
[SourceTitle "playchess.com"]
[Source "ChessBase"]
[SourceQuality "1"]
[TimeControl "5400+30"]

1. Nf3 {[%emt 1:31:00]} Nf6 {[%emt 1:31:00]} 2. b3 {[%emt 0:00:30]} e6 {[%emt 0:00:30]} 3. Bb2 {[%emt 0:00:30]} c5 {[%emt 0:00:30]} 4. e3 {[%emt 0:00:30]} b6 {[%emt 0:00:30]} 5. c4 {[%emt 0:00:30]} Bb7 {[%emt 0:00:30]} 6. Be2 {[%emt 0:00:30]} Be7 {[%emt 0:00:30]} 7. O-O {[%emt 0:00:30]} O-O {[%emt 0:00:30]} 8. d3 {[%emt 0:00:30]} d6 {[%emt 0:00:30]} 9. Nbd2 {[%emt 0:00:30]} Nbd7 {[%emt 0:00:30]} 10. Qc2 {[%emt 0:00:30]} Rc8 {[%emt 0:00:30]} 11. Rfd1 {[%emt 0:00:30]} a6 {[%emt 0:00:30]} 12. Rac1 {[%emt 0:00:30]} Rc7 {[%emt 0:00:30]} 13. Qb1 {[%emt 0:00:30]} Qa8 {[%emt 0:00:30]} 14. a3 {[%emt 0:00:30]} Rd8 {[%emt 0:00:30]} 15. b4 {[%emt 0:00:30]} Rdc8 {[%emt 0:00:30]} 16. Nb3 {[%emt 0:00:30]} cxb4 {[%emt 0:00:30]} 17. axb4 {[%emt 0:00:30]} d5 {[%emt 0:00:30]} 18. b5 {[%emt 0:00:30]} dxc4 {[%emt 0:00:30]} 19. dxc4 {[%emt 0:00:30]} axb5 {[%emt 0:00:30]} 20. cxb5 {[%emt 0:00:30]} Nc5 {[%emt 0:00:30]} 21. Nxc5 {[%emt 0:00:30]} Rxc5 {[%emt 0:00:30]} 22. Bd4 {[%emt 0:00:30]} Be4 {[%emt 0:00:30]} 23. Qa1 {[%emt 0:00:30]} Rxc1 24. Rxc1 Rxc1+ 25. Qxc1 Qb7 26. Ne5 Bd6 {[%emt 0:02:00]} 27. f3 {[%emt 0:02:00]} Bg6 {[%emt 0:00:30]} 28. e4 {[%emt 0:00:30]} Qc7 {[%emt 0:00:30]} 29. Qxc7 {[%emt 0:00:30]} Bxc7 30. Nxg6 {[%emt 0:00:30]} hxg6 {[%emt 0:01:00]} 31. g3 {[%emt 0:00:30]} Nd7 {[%emt 0:00:30]} 32. Kf2 {[%emt 0:00:30]} Kf8 {[%emt 0:00:30]} 33. f4 {[%emt 0:00:30]} e5 {[%emt 0:00:30]} 34. fxe5 {[%emt 0:00:30]} Bxe5 {[%emt 0:00:30]} 35. Be3 {[%emt 0:00:30]} Ke7 {[%emt 0:00:30]} 36. Bg4 {[%emt 0:00:30]} Nf6 {[%emt 0:00:30]} 37. Bg5 {[%emt 0:00:30]} Kd6 {[%emt 0:00:30]} 38. Bxf6 {[%emt 0:00:30]} Bxf6 {[%emt 0:00:30]} 39. Be2 {[%emt 0:00:30]} Bd4+ {[%emt 0:00:30]} 40. Kf3 {[%emt 0:00:30]} Ke5 {[%emt 0:00:30]} 41. Bc4 {[%emt 0:00:30]} f6 {[%emt 0:00:30]} 42. g4 {[%emt 0:00:30]} Bc5 {[%emt 0:00:30]} 43. Bd5 {[%emt 0:00:30]} f5 {[%emt 0:00:30]} 44. gxf5 {[%emt 0:00:30]} gxf5 {[%emt 0:00:30]} 45. Bc6 {[%emt 0:00:30]} f4 {[%emt 0:00:30]} 46. h3 {[%emt 0:00:30]} g5 {[%emt 0:00:30]} 47. Be8 {[%emt 0:00:30]} Bd4 {[%emt 0:00:30]} 48. Bd7 {[%emt 0:00:30]} Kd6 {[%emt 0:00:30]} 49. Bc6 {[%emt 0:00:30]} 1/2-1/2

[Event "Catalan Youth Championship 2024"]
[Site "Cambrils"]
[Date "2024.03.23"]
[Round "1.10"]
[White "Uber Gracia, Hugo"]
[Black "Nasarre Argelich, Pol"]
[Result "1-0"]
[ECO "B11"]
[WhiteElo "2237"]
[BlackElo "1608"]
[Annotator "RC"]
[PlyCount "57"]
[EventDate "2024.03.13"]
[EventType "swiss"]
[EventCountry "ESP"]
[SourceTitle "playchess.com"]
[Source "ChessBase"]
[SourceQuality "1"]
[TimeControl "5400+30"]

1. e4 {[%emt 0:00:03]} c6 {[%emt 0:00:09]} 2. Nf3 {[%emt 0:00:09]} d5 {[%emt 0:00:13]} 3. Nc3 {[%emt 0:00:06]} dxe4 {[%emt 0:00:37]} 4. Nxe4 {[%emt 0:00:07]} Nf6 {[%emt 0:00:07]} 5. Qe2 {[%emt 0:00:06]} Nxe4 {[%emt 0:02:07]} 6. Qxe4 {[%emt 0:00:02]} Nd7 {[%emt 0:04:59]} 7. Bc4 {[%emt 0:00:12]} Nf6 {[%emt 0:01:29]} 8. Ne5 {[%emt 0:00:23]} e6 {[%emt 0:02:05]} 9. Qe2 {[%emt 0:00:06]} Bd6 {[%emt 0:00:34]} 10. d4 {[%emt 0:01:08]} O-O {[%emt 0:00:43]} 11. O-O {[%emt 0:00:40]} Qc7 {[%emt 0:02:36]} 12. Bf4 {[%emt 0:02:10]} b6 {[%emt 0:12:03]} 13. c3 {[%emt 1:31:48]} Bb7 {[%emt 0:05:30]} 14. Bg3 {[%emt 0:00:00]} g6 {[%emt 1:04:18]} 15. Qe3 {[%emt 0:00:00]} Nh5 {[%emt 0:00:00]} 16. Bh4 {[%emt 0:00:00]} Be7 {[%emt 0:00:00]} 17. Bxe7 {[%emt 0:00:00]} Qxe7 {[%emt 0:00:00]} 18. Qh6 {[%emt 0:00:00]} Rfd8 {[%emt 0:00:00]} 19. Rfe1 {[%emt 0:00:00]} Qf8 {[%emt 0:00:00]} 20. Qe3 {[%emt 0:00:00]} Qe7 {[%emt 0:00:00]} 21. Nxf7 {[%emt 0:00:00]} Kxf7 {[%emt 0:00:00]} 22. Bxe6+ {[%emt 0:00:00]} Kg7 {[%emt 0:00:00]} 23. g4 {[%emt 0:00:00]} Nf6 {[%emt 0:00:00]} 24. g5 {[%emt 0:00:00]} Nd7 {[%emt 0:00:00]} 25. Qf4 {[%emt 0:00:00]} Qf8 {[%emt 0:00:00]} 26. Qc7 {[%emt 0:00:00]} Bc8 {[%emt 0:00:00]} 27. Re4 {[%emt 0:00:00]} Qe7 {[%emt 0:00:00]} 28. Bxd7 {[%emt 0:00:00]} Qxd7 {[%emt 0:01:51]} 29. Re7+ {[%emt 0:00:00]} 1-0

[Event "Catalan Youth Championship 2024"]
[Site "Cambrils"]
[Date "2024.03.23"]
[Round "1.11"]
[White "Guzman Lopez, Leonardo"]
[Black "Prada Villagrasa, Pau Manel"]
[Result "0-1"]
[ECO "C11"]
[WhiteElo "1599"]
[BlackElo "2103"]
[Annotator "RC"]
[PlyCount "68"]
[EventDate "2024.03.13"]
[EventType "swiss"]
[EventCountry "ESP"]
[SourceTitle "playchess.com"]
[Source "ChessBase"]
[SourceQuality "1"]
[TimeControl "5400+30"]

1. e4 {[%emt 0:00:02]} e6 {[%emt 0:00:07]} 2. d4 {[%emt 0:00:05]} d5 {[%emt 0:00:04]} 3. Nc3 {[%emt 0:00:08]} Nf6 {[%emt 0:00:10]} 4. e5 {[%emt 0:00:26]} Nfd7 {[%emt 0:00:14]} 5. Nce2 {[%emt 0:00:53]} c5 {[%emt 0:03:38]} 6. c3 {[%emt 0:00:41]} Nc6 {[%emt 0:00:19]} 7. Nf3 {[%emt 0:00:22]} Be7 {[%emt 0:01:09]} 8. Nf4 {[%emt 0:00:34]} Qb6 {[%emt 1:28:49]} 9. h4 {[%emt 0:06:41]} cxd4 {[%emt 0:00:00]} 10. cxd4 {[%emt 0:16:17]} Bb4+ {[%emt 0:00:00]} 11. Bd2 {[%emt 0:01:37]} Nxd4 {[%emt 0:00:00]} 12. Bxb4 {[%emt 0:00:33]} Nxf3+ {[%emt 0:00:00]} 13. Qxf3 {[%emt 0:00:52]} Qxb4+ {[%emt 0:00:00]} 14. Qc3 {[%emt 0:00:09]} Qxf4 {[%emt 0:00:00]} 15. Bb5 {[%emt 0:01:37]} Qe4+ {[%emt 0:00:00]} 16. Kf1 {[%emt 0:01:15]} O-O {[%emt 0:00:00]} 17. h5 {[%emt 0:01:18]} Qxe5 {[%emt 0:00:00]} 18. Qd2 {[%emt 0:01:29]} a6 {[%emt 0:00:00]} 19. Bd3 {[%emt 0:00:39]} Nc5 {[%emt 0:00:00]} 20. Bc2 {[%emt 0:00:18]} Bd7 {[%emt 0:00:00]} 21. Re1 {[%emt 0:02:26]} Bb5+ {[%emt 0:00:00]} 22. Kg1 {[%emt 0:01:08]} Qf6 {[%emt 0:00:00]} 23. Qe3 {[%emt 0:10:56]} d4 {[%emt 0:07:30]} 24. Qa3 {[%emt 0:06:41]} d3 {[%emt 0:00:00]} 25. Qxc5 {[%emt 0:03:06]} Rac8 {[%emt 0:00:00]} 26. Qe3 {[%emt 0:00:56]} dxc2 {[%emt 0:00:00]} 27. Rc1 {[%emt 0:00:12]} Rfd8 {[%emt 0:00:00]} 28. Kh2 {[%emt 0:00:23]} Qh4+ {[%emt 0:00:00]} 29. Qh3 {[%emt 0:00:12]} Qxf2 {[%emt 0:00:00]} 30. Qg3 {[%emt 0:00:49]} Qxg3+ {[%emt 0:00:00]} 31. Kxg3 {[%emt 0:00:03]} Rd2 {[%emt 0:00:00]} 32. Kf4 {[%emt 0:00:49]} Be2 {[%emt 0:00:00]} 33. Ke3 {[%emt 0:00:28]} Rcd8 {[%emt 0:00:00]} 34. Rhe1 {[%emt 0:00:47]} Bxh5 {[%emt 0:00:00]} 0-1

[Event "Catalan Youth Championship 2024"]
[Site "Cambrils"]
[Date "2024.03.23"]
[Round "1.12"]
[White "Herman Gamazo, Isaac"]
[Black "Pop, David"]
[Result "1-0"]
[ECO "B32"]
[WhiteElo "2096"]
[BlackElo "1596"]
[Annotator "NA RC"]
[PlyCount "89"]
[EventDate "2024.03.13"]
[EventType "swiss"]
[EventCountry "ESP"]
[SourceTitle "playchess.com"]
[Source "ChessBase"]
[SourceQuality "1"]
[TimeControl "5400+30"]

1. e4 {[%emt 0:00:05]} c5 {[%emt 0:00:09]} 2. Nf3 {[%emt 0:00:08]} Nc6 {[%emt 0:00:08]} 3. d4 {[%emt 0:00:08]} cxd4 {[%emt 0:00:22]} 4. Nxd4 {[%emt 0:00:08]} e5 {[%emt 0:00:20]} 5. Nb5 {[%emt 0:00:16]} a6 {[%emt 0:00:19]} 6. Nd6+ {[%emt 0:01:20]} Bxd6 {[%emt 0:00:30]} 7. Qxd6 {[%emt 0:00:08]} Qf6 {[%emt 0:00:11]} 8. Qxf6 {[%emt 0:00:08]} Nxf6 {[%emt 0:00:06]} 9. Nc3 {[%emt 0:00:28]} d6 {[%emt 0:02:58]} 10. Be3 {[%emt 0:01:31]} Be6 {[%emt 0:02:51]} 11. O-O-O {[%emt 0:11:11]} Rd8 {[%emt 0:05:13]} 12. f3 {[%emt 0:01:36]} h6 {[%emt 0:07:41]} 13. h4 {[%emt 0:02:00]} d5 {[%emt 0:05:36]} 14. exd5 {[%emt 0:01:07]} Nxd5 {[%emt 0:01:06]} 15. Nxd5 {[%emt 1:17:46]} Rxd5 {[%emt 0:04:38]} 16. Rxd5 {[%emt 0:00:00]} Bxd5 {[%emt 0:00:04]} 17. c4 {[%emt 0:00:00]} Be6 {[%emt 0:00:16]} 18. Kc2 {[%emt 0:01:30]} O-O {[%emt 1:07:02]} 19. a3 {[%emt 0:00:00]} f5 {[%emt 0:00:30]} 20. b4 {[%emt 0:00:00]} Rd8 {[%emt 0:00:30]} 21. Bd3 {[%emt 0:00:00]} f4 {[%emt 0:00:00]} 22. Bf2 {[%emt 0:00:00]} Nd4+ {[%emt 0:00:00]} 23. Kc3 {[%emt 0:02:30]} b5 {[%emt 0:00:00]} 24. c5 {[%emt 0:00:30]} Kf7 {[%emt 0:00:00]} 25. h5 {[%emt 0:00:00]} Bf5 {[%emt 0:00:00]} 26. Bxd4 {[%emt 0:00:00]} exd4+ {[%emt 0:00:00]} 27. Kd2 {[%emt 0:00:00]} Bxd3 {[%emt 0:00:00]} 28. Kxd3 {[%emt 0:02:00]} Kf6 {[%emt 0:00:00]} 29. Re1 {[%emt 0:00:00]} Kf5 {[%emt 0:00:00]} 30. Re4 {[%emt 0:00:00]} Rd5 {[%emt 0:00:00]} 31. Rxd4 {[%emt 0:00:00]} Ke5 {[%emt 0:00:00]} 32. Rxd5+ Kxd5 {[%emt 0:00:00]} 33. Ke2 {[%emt 0:00:00]} a5 {[%emt 0:00:00]} 34. Kf2 {[%emt 0:00:00]} axb4 35. axb4 {[%emt 0:00:00]} Ke6 {[%emt 0:00:00]} 36. g3 {[%emt 0:00:00]} fxg3+ 37. Kxg3 {[%emt 0:00:00]} Kd5 {[%emt 0:00:00]} 38. Kf4 {[%emt 0:00:00]} Ke6 {[%emt 0:00:00]} 39. Ke4 {[%emt 0:00:00]} Kd7 {[%emt 0:00:00]} 40. Kd5 {[%emt 0:00:00]} Kc7 {[%emt 0:00:00]} 41. c6 {[%emt 0:00:00]} Kd8 {[%emt 0:00:00]} 42. Kd6 {[%emt 0:00:00]} Kc8 {[%emt 0:00:00]} 43. c7 {[%emt 0:00:00]} g5 {[%emt 0:00:00]} 44. hxg6 {[%emt 0:00:00]} Kb7 {[%emt 0:12:00]} 45. g7 {[%emt 0:00:00]} 1-0